bitfinex-derivatives/quotes_ETHF0:USTF0_20250909
["timestamp","ask_amount","ask_price","bid_price","bid_amount"]
[1757438081143,5.9662,4292.9,4292.8,2.20825938]
[1757438081754,6.7691,4292.9,4292.8,2.20825938]
[1757438082150,6.7691,4292.9,4292.8,2.20826172]
[1757438083648,5.9662,4292.9,4292.8,2.20826172]
[1757438085256,6.7691,4292.9,4292.8,2.20826172]
[1757438089859,6.7691,4292.9,4292.8,2.44326172]
[1757438090664,6.7691,4292.9,4292.8,0.55276172]
[1757438090855,6.7691,4292.9,4292.8,1.32716172]
[1757438093760,6.7691,4292.9,4292.8,1.84756172]
[1757438098359,6.7691,4292.9,4292.8,1.32716172]
[1757438099160,6.7691,4292.9,4292.8,0.55276172]
[1757438099969,5.4275,4292.9,4292.8,2.38496172]
[1757438100564,6.7043,4292.9,4292.8,2.38496172]
[1757438102463,6.7043,4292.9,4292.8,1.84756172]
[1757438102667,6.7043,4292.9,4292.8,1.32716172]
[1757438102869,6.7043,4292.9,4292.8,0.55276172]
[1757438103161,6.7043,4292.9,4292.8,0.31776172]
[1757438103364,7.26471991,4292.9,4292.8,0.31776172]
[1757438103569,7.39799612,4292.9,4292.6,0.235]
[1757438103870,1.8043,4292.7,4292.6,0.235]
[1757438104067,6.45793565,4292.7,4292.6,1.5298]
[1757438104268,7.1743,4292.7,4292.6,1.5298]
[1757438104663,7.1743,4292.7,4292.6,0.235]
[1757438105368,1.0376,4292.1,4292.0,0.7744]
[1757438105574,7.0243,4292.1,4292.0,1.0094]
[1757438107968,7.0243,4292.1,4292.0,1.5298]
[1757438108680,5.22,4292.1,4292.0,2.3718]
[1757438112972,5.22,4292.1,4292.0,4.04299817]
[1757438114078,6.2576,4292.1,4292.0,3.80799817]
[1757438114275,7.0243,4292.1,4292.0,3.20099817]
[1757438114879,7.0243,4292.1,4292.0,3.50559817]
[1757438115184,7.0243,4292.1,4292.0,1.8344]
[1757438116477,7.0243,4292.1,4292.0,0.7744]
[1757438116782,7.0243,4292.1,4292.0,0.235]
[1757438118580,5.7551,4292.1,4292.0,1.6029]
[1757438118785,6.2554,4292.1,4292.0,2.4416]
[1757438120287,5.22,4292.1,4292.0,2.4416]
[1757438120674,6.2554,4292.1,4292.0,2.4416]
[1757438120879,7.0316,4292.1,4292.0,2.4416]
[1757438121887,6.2554,4292.1,4292.0,2.4416]
[1757438123589,7.0316,4292.1,4292.0,2.4416]
[1757438124790,6.2554,4292.1,4292.0,2.4416]
[1757438125086,7.0316,4292.1,4292.0,2.4416]
[1757438126190,7.0316,4292.1,4292.0,1.0594]
[1757438127994,6.2554,4292.1,4292.0,2.4416]
[1757438128195,5.7551,4292.1,4292.0,1.6172]
[1757438128384,5.7551,4292.1,4292.0,2.4416]
[1757438128989,6.2554,4292.1,4292.0,2.4416]
[1757438134297,5.22,4292.1,4292.0,2.4416]
[1757438134498,0.7762,4293.0,4292.1,0.8244]
[1757438134694,6.43916,4293.0,4292.5,1.1307]
[1757438134899,0.5351,4292.6,4292.5,3.87854651]
[1757438135101,5.2451,4292.6,4292.5,4.11354651]
[1757438135398,5.2451,4292.6,4292.5,2.4416]
[1757438135602,4.71,4292.6,4292.5,2.4416]
[1757438137000,0.5351,4293.6,4293.5,1.3822]
[1757438137203,3.47,4293.6,4293.5,2.4416]
[1757438138205,4.0051,4293.6,4293.5,2.4416]
[1757438139801,5.2816,4293.6,4293.5,2.4416]
[1757438140001,1.8116,4293.1,4292.6,1.67090994]
[1757438140203,1.8116,4292.9,4292.8,0.8244]
[1757438140500,1.8116,4292.9,4292.8,1.3679]
[1757438140707,1.0354,4292.9,4292.8,1.9003]
[1757438140904,1.8116,4292.9,4292.8,1.9003]
[1757438141305,7.5816,4292.9,4292.8,1.9003]
[1757438142304,6.8054,4292.9,4292.8,1.9003]
[1757438143106,6.8054,4292.9,4292.8,2.1353]
[1757438144007,6.3051,4292.9,4292.8,2.1353]
[1757438144218,5.77,4292.9,4292.8,2.1353]
[1757438145511,6.3051,4292.9,4292.8,2.1353]
[1757438147816,5.77,4292.9,4292.8,2.1353]
[1757438148111,7.5733,4292.9,4292.8,2.1353]
[1757438148510,6.8025,4292.9,4292.8,2.1353]
[1757438148812,5.77,4292.9,4292.8,2.1353]
[1757438149316,0.5213,4293.0,4292.9,1.8454]
[1757438149608,6.5425,4293.0,4292.9,1.8454]
[1757438150315,7.3133,4293.0,4292.9,1.3397]
[1757438150511,7.3133,4293.0,4292.9,0.8216]
[1757438151816,7.3133,4293.0,4292.9,1.3397]
[1757438152016,3.9733,4293.0,4292.9,1.3397]
[1757438152216,7.0833,4293.0,4292.9,1.3397]
[1757438152814,6.9933,4293.0,4292.5,0.3063]
[1757438153015,7.2466,4293.0,4292.7,0.8216]
[1757438153715,7.2466,4293.0,4292.6,0.235]
[1757438153917,6.2225,4293.0,4292.6,0.235]
[1757438154121,1.8033,4292.8,4292.7,1.3397]
[1757438154314,7.1233,4292.8,4292.7,1.3397]
[1757438156919,1.0325,4292.8,4292.7,1.8454]
[1757438158618,0.5213,4292.8,4292.7,1.8454]
[1757438160822,1.0325,4292.8,4292.7,1.8454]
[1757438161023,7.1133,4292.8,4292.7,1.0566]
[1757438161217,0.2533,4293.5,4292.5,0.8216]
[1757438161218,1.0325,4292.6,4292.5,0.8216]
[1757438161424,6.7433,4292.6,4292.5,2.72750994]
[1757438161624,6.7433,4292.6,4292.5,1.0566]
[1757438162124,6.7433,4292.6,4292.5,0.8216]
[1757438162322,5.9725,4292.6,4292.5,0.235]
[1757438163020,6.7433,4292.6,4292.5,0.235]
[1757438164525,5.9725,4292.6,4292.5,1.8801]
[1757438164718,5.9725,4292.6,4292.5,2.3858]
[1757438165415,6.7433,4292.6,4292.5,1.8801]
[1757438165617,6.7433,4292.6,4292.5,1.0566]
[1757438167625,6.7433,4292.6,4292.5,0.235]
[1757438168125,6.7433,4292.6,4292.5,1.0566]
[1757438168823,6.7433,4292.6,4292.5,1.5747]
[1757438169326,6.7433,4292.6,4292.5,1.3397]
[1757438169519,6.7433,4292.6,4292.5,1.5747]
[1757438170726,6.7433,4292.6,4292.5,0.235]
[1757438170915,6.7433,4292.6,4292.5,1.0566]
[1757438171225,6.7433,4292.6,4292.5,1.5747]
[1757438172227,6.7433,4292.6,4292.5,1.0566]
[1757438173125,6.7433,4292.6,4292.5,0.235]
[1757438173726,6.7433,4292.6,4292.5,1.0566]
[1757438176129,6.7433,4292.6,4292.5,0.235]
[1757438176326,5.9725,4292.6,4292.5,0.235]
[1757438176521,9.1803,4292.6,4292.5,0.235]
[1757438176830,9.9228,4292.6,4292.5,0.235]
[1757438177930,9.9228,4292.6,4292.5,1.0004]
[1757438178931,9.9228,4292.6,4292.5,1.8176]
[1757438183834,8.1478,4292.6,4292.5,2.3128]
[1757438184127,8.1478,4292.6,4292.5,2.54576]
[1757438184724,8.1478,4292.6,4292.5,2.3128]
[1757438185727,8.6469,4292.6,4292.5,2.3128]
[1757438185926,3.7069,4292.6,4292.5,2.3128]
[1757438187932,0.4991,4292.6,4292.5,2.3128]
[1757438190635,0.7425,4293.0,4292.5,2.3128]
[1757438190830,3.47,4293.0,4292.9,0.9897]
[1757438191034,3.19521484,4293.2,4293.1,0.9897]
[1757438191333,0.2587,4295.0,4294.0,2.0778]
[1757438191334,0.50259073,4294.1,4294.0,2.0778]
[1757438191533,6.10259073,4294.1,4294.0,2.3128]
[1757438191733,0.50259073,4294.1,4294.0,3.98491918]
[1757438191934,1.19259073,4294.1,4294.0,3.98491918]
[1757438192330,1.19259073,4294.1,4294.0,2.3128]
[1757438193037,0.69349073,4294.1,4294.0,2.3128]
[1757438193539,4.88349073,4294.1,4294.0,2.3128]
[1757438194439,4.88349073,4294.1,4294.0,5.71614952]
[1757438194839,3.2078,4294.8,4294.0,5.71614952]
[1757438194840,3.7069,4294.8,4294.7,0.9897]
[1757438195037,9.4369,4294.8,4294.7,1.9901]
[1757438196442,6.2178,4294.8,4294.7,1.9901]
[1757438197835,6.7169,4294.8,4294.7,1.9901]
[1757438199443,3.5091,4294.8,4294.7,1.9901]
[1757438200340,4.0225,4294.8,4294.7,1.9901]
[1757438201636,4.765,4294.8,4294.7,1.9901]
[1757438204538,0.7425,4294.6,4294.2,0.7654]
[1757438204849,1.0125,4294.3,4294.0,0.51824952]
[1757438205043,1.755,4294.2,4294.1,0.9994]
[1757438205347,6.465,4294.2,4294.0,0.19554952]
[1757438205540,5.7225,4294.2,4294.1,0.234]
[1757438206140,6.465,4294.2,4294.1,0.234]
[1757438206341,6.465,4294.2,4294.1,0.9994]
[1757438207541,6.465,4294.2,4293.8,0.7706]
[1757438207747,6.465,4294.2,4293.6,36.7588]
[1757438207748,1.7085,4293.7,4293.6,36.7588]
[1757438207948,7.1385,4293.7,4293.6,33.551]
[1757438208143,7.1385,4293.7,4293.6,33.785]
[1757438209239,7.1385,4293.7,4293.6,34.5556]
[1757438209439,7.1385,4293.7,4293.6,33.785]
[1757438209641,0.9786,4293.7,4293.6,34.5556]
[1757438209943,0.4889,4293.7,4293.6,34.5556]
[1757438215850,3.2078,4293.8,4293.6,34.5556]
[1757438216053,8.2178,4293.8,4293.7,1.0134]
[1757438216352,8.2178,4293.8,4293.7,1.784]
[1757438216539,8.7067,4293.8,4293.7,1.784]
[1757438217751,9.1964,4293.8,4293.7,1.784]
[1757438219455,3.2578,4293.8,4293.7,1.784]
[1757438219655,0.05,4293.8,4293.7,3.68901918]
[1757438219847,0.05,4293.8,4293.7,1.784]
[1757438220849,0.5389,4293.8,4293.7,1.784]
[1757438221048,6.7985,4293.8,4293.7,1.0056]
[1757438221657,0.7299,4293.7,4293.6,33.551]
[1757438221854,6.2899,4293.7,4293.6,33.551]
[1757438222153,6.2899,4293.7,4293.6,33.786]
[1757438224054,6.2899,4293.7,4293.6,34.5566]
[1757438224250,6.2899,4293.7,4293.6,33.551]
[1757438224553,6.2899,4293.7,4293.6,33.786]
[1757438225049,3.2078,4294.1,4294.0,1.0134]
[1757438225249,5.58,4294.1,4294.0,2.3141]
[1757438226057,6.0689,4294.1,4294.0,2.3141]
[1757438228856,6.5586,4294.1,4294.0,2.3141]
[1757438231160,6.5586,4294.1,4294.0,2.0791]
[1757438231361,10.4963,4294.1,4294.0,0.235]
[1757438231661,9.7664,4294.1,4294.0,2.3141]
[1757438232866,10.4963,4294.1,4294.0,2.3141]
[1757438233665,10.4963,4294.1,4294.0,1.0056]
[1757438233863,10.4963,4294.1,4294.0,0.235]
[1757438234656,0.2587,4294.0,4293.7,0.7706]
[1757438234852,1.7085,4293.8,4293.7,0.7706]
[1757438235054,7.2585,4293.8,4293.7,1.0056]
[1757438235864,7.2585,4293.8,4293.7,0.235]
[1757438236864,0.7023,4293.7,4293.6,33.551]
[1757438237064,6.3723,4293.7,4293.6,33.786]
[1757438237961,0.9872,4293.3,4293.2,0.7541]
[1757438238160,10.3573,4293.3,4293.0,1.0768]
[1757438238361,0.9872,4292.6,4292.5,1.66895683]
[1757438238563,6.1072,4292.6,4292.5,0.9891]
[1757438238968,6.8095,4292.6,4292.5,0.9891]
[1757438239470,5.6145,4292.6,4292.5,2.3348]
[1757438240573,6.8095,4292.6,4292.5,1.5097]
[1757438241075,6.8095,4292.6,4292.5,0.9891]
[1757438241868,6.8095,4292.6,4292.5,1.5097]
[1757438242069,5.12,4292.6,4292.5,2.3348]
[1757438242269,6.8095,4292.6,4292.5,2.3348]
[1757438242779,6.1072,4292.6,4292.5,2.3348]
[1757438243079,5.12,4292.6,4292.5,2.3348]
[1757438243876,5.6145,4292.6,4292.5,2.3348]
[1757438244074,6.8095,4292.6,4292.5,1.5097]
[1757438244571,6.8095,4292.6,4292.5,0.9891]
[1757438245581,6.1072,4292.6,4292.5,2.3348]
[1757438248674,5.6145,4292.6,4292.5,2.3348]
[1757438249072,1.83,4292.6,4292.5,6.3348]
[1757438249278,3.7023,4293.2,4293.1,1.7979]
[1757438249473,8.7023,4293.2,4293.1,2.0329]
[1757438249877,9.195,4293.2,4293.1,2.0329]
[1757438250073,9.8973,4293.2,4292.6,0.7541]
[1757438250286,9.8973,4293.2,4292.7,0.235]
[1757438250486,0.9872,4292.9,4292.8,0.7541]
[1757438250692,0.9872,4292.9,4292.8,0.9891]
[1757438250693,7.4795,4292.9,4292.8,0.9891]
[1757438250989,7.4795,4292.9,4292.8,1.5097]
[1757438251679,0.7023,4292.8,4292.6,0.7541]
[1757438251881,4.8973,4292.7,4292.6,0.7541]
[1757438252078,10.4573,4292.7,4292.6,0.9891]
[1757438252282,10.4573,4292.7,4292.6,1.5097]
[1757438253689,10.4573,4292.7,4292.6,0.9891]
[1757438253890,10.4573,4292.7,4292.6,1.5097]
[1757438255295,10.4573,4292.7,4292.6,1.2788]
[1757438255296,3.22,4292.7,4292.6,1.2788]
[1757438255487,3.22,4292.7,4292.6,2.0329]
[1757438255988,3.22,4292.7,4292.6,1.7979]
[1757438255989,4.2072,4292.7,4292.6,1.7979]
[1757438256289,4.2072,4292.7,4292.6,2.0329]
[1757438256290,4.9095,4292.7,4292.6,2.0329]
[1757438257096,4.9095,4292.7,4292.6,0.9891]
[1757438257284,4.9095,4292.7,4292.6,0.235]
[1757438258587,4.9095,4292.7,4292.6,0.9891]
[1757438259190,4.9095,4292.7,4292.6,1.5097]
[1757438259586,4.9095,4292.7,4292.6,0.9891]
[1757438260189,4.9095,4292.7,4292.6,0.235]
[1757438260690,4.2072,4292.7,4292.0,38.71585683]
[1757438260993,0.9872,4292.1,4292.0,34.2981]
[1757438261200,6.1472,4292.1,4292.0,33.779]
[1757438261383,6.8495,4292.1,4292.0,33.779]
[1757438261582,6.8495,4292.1,4292.0,0.235]
[1757438262690,0.2587,4292.0,4291.9,0.235]
[1757438262896,6.6282,4292.0,4291.9,0.235]
[1757438269598,6.3582,4292.0,4291.9,0.9668]
[1757438269805,5.683,4292.0,4291.9,1.9491]
[1757438271103,5.1726,4292.0,4291.9,1.9491]
[1757438271313,4.68,4292.0,4291.9,5.9491]
[1757438272202,5.683,4292.0,4291.9,1.7141]
[1757438272404,6.3582,4292.0,4291.9,1.7141]
[1757438272601,6.3582,4292.0,4291.9,1.9491]
[1757438272803,6.3582,4292.0,4291.9,0.7318]
[1757438272993,6.3582,4292.0,4291.9,0.9668]
[1757438273197,6.3582,4292.0,4291.9,1.481]
[1757438273394,5.683,4292.0,4291.9,1.9491]
[1757438273901,6.3582,4292.0,4291.9,1.9491]
[1757438274102,5.683,4292.0,4291.9,1.9491]
[1757438277111,6.3582,4292.0,4291.9,1.9491]
[1757438277313,5.1726,4292.0,4291.9,1.9491]
[1757438278107,4.68,4292.0,4291.9,1.9491]
[1757438278809,5.1726,4292.0,4291.9,1.9491]
[1757438279312,4.68,4292.0,4291.9,1.9491]
[1757438279508,5.1726,4292.0,4291.9,1.9491]
[1757438280013,4.68,4292.0,4291.9,1.9491]
[1757438280801,3.2078,4292.3,4292.2,0.9823]
[1757438281002,8.2178,4292.3,4292.2,1.7141]
[1757438281206,8.7104,4292.3,4292.2,1.7141]
[1757438281408,9.2208,4292.3,4292.2,1.7141]
[1757438281608,9.896,4292.3,4292.2,1.7141]
[1757438282307,9.896,4292.3,4291.8,1.66895683]
[1757438282507,9.896,4292.3,4291.9,0.235]
[1757438282713,9.896,4292.3,4291.6,0.7318]
[1757438282910,1.6782,4291.5,4291.4,1.246]
[1757438283109,6.6882,4291.5,4291.4,1.481]
[1757438285518,3.2078,4291.8,4291.7,0.9823]
[1757438285717,8.9778,4291.8,4291.7,1.9491]
[1757438285910,9.4704,4291.8,4291.7,1.9491]
[1757438286110,9.9808,4291.8,4291.7,1.9491]
[1757438289613,10.656,4291.8,4291.7,1.9491]
[1757438291912,10.656,4291.8,4291.7,0.9668]
[1757438292513,10.656,4291.8,4291.6,1.66895683]
[1757438292717,10.656,4291.8,4291.7,0.235]
[1757438295814,10.656,4291.8,4291.4,1.66895683]
[1757438296017,0.6752,4291.7,4291.5,0.235]
[1757438296224,1.6782,4291.6,4291.5,0.235]
[1757438296518,6.3482,4291.6,4291.5,0.235]
[1757438296718,6.3482,4291.6,4291.0,1.03719483]
[1757438296916,1.6442,4291.2,4291.1,1.4197]
[1757438297112,5.6557,4291.2,4291.1,1.9082]
[1757438299115,6.3042,4291.2,4291.1,0.235]
[1757438301022,6.3042,4291.2,4291.1,0.9279]
[1757438301530,6.3042,4291.2,4291.1,1.4197]
[1757438302225,6.3042,4291.2,4291.1,0.9279]
[1757438303823,6.3042,4291.2,4291.1,1.4197]
[1757438305425,6.3042,4291.2,4291.1,0.9279]
[1757438306923,6.3042,4291.2,4291.1,0.235]
[1757438307821,6.3042,4291.2,4291.0,0.00349483]
[1757438309728,6.5392,4291.2,4291.0,0.00349483]
[1757438317830,6.5392,4291.2,4290.0,300.235]
[1757438317831,1.6442,4290.1,4290.0,300.235]
[1757438318031,10.412,4290.1,4290.0,300.235]
[1757438318233,10.412,4290.1,4290.0,300.0]
[1757438318934,10.97108384,4290.1,4290.0,300.0]
[1757438319124,10.412,4290.1,4290.0,300.0]
[1757438324236,14.412,4290.1,4290.0,300.0]
[1757438329632,14.412,4290.1,4290.0,300.7328]
[1757438330940,14.412,4290.1,4290.0,0.7328]
[1757438331146,1.1946,4289.6,4289.5,1.2725]
[1757438331346,10.1574,4289.6,4289.5,1.2725]
[1757438331955,0.7034,4289.4,4288.0,0.2868]
[1757438332150,0.235,4289.3,4288.8,1.1969]
[1757438332458,3.9112,4288.9,4288.8,1.1969]
[1757438332657,9.4212,4288.9,4288.8,1.1969]
[1757438333053,9.4212,4288.9,4288.8,1.866]
[1757438333651,8.7178,4288.9,4288.8,1.866]
[1757438334155,9.4212,4288.9,4288.8,1.866]
[1757438335253,9.4212,4288.9,4288.8,1.643]
[1757438336353,9.9124,4288.9,4288.8,1.643]
[1757438336553,10.377,4288.9,4288.8,1.643]
[1757438336959,10.612,4288.9,4288.6,0.235]
[1757438337154,0.2742,4288.5,4288.4,0.6691]
[1757438337353,7.1488,4288.5,4288.4,1.643]
[1757438337561,7.6134,4288.5,4288.4,0.9739]
[1757438338355,7.6134,4288.5,4288.4,1.643]
[1757438340061,7.6134,4288.5,4288.4,0.9739]
[1757438340362,7.6134,4288.5,4288.4,0.4827]
[1757438340562,7.6134,4288.5,4288.4,0.9739]
[1757438342059,7.6134,4288.5,4288.1,0.235]
[1757438342260,4.867,4288.2,4288.1,0.7177]
[1757438342463,10.147,4288.2,4288.1,0.7177]
[1757438342657,10.147,4288.2,4288.1,1.2089]
[1757438342859,10.147,4288.2,4288.1,1.878]
[1757438343353,10.147,4288.2,4288.1,0.4827]
[1757438343553,10.147,4288.2,4288.1,0.9739]
[1757438343757,10.147,4288.2,4288.1,0.4827]
[1757438343967,1.9334,4288.0,4287.9,0.235]
[1757438344266,6.9134,4288.0,4287.9,0.7177]
[1757438345563,4.98,4288.0,4287.9,1.643]
[1757438345764,5.6834,4288.0,4287.9,1.643]
[1757438346655,6.1746,4288.0,4287.9,1.643]
[1757438346861,6.9134,4288.0,4287.9,0.9739]
[1757438347170,6.9134,4288.0,4287.9,0.4827]
[1757438348271,6.9134,4288.0,4287.9,0.9739]
[1757438348462,6.9134,4288.0,4287.9,1.643]
[1757438349158,6.9134,4288.0,4287.9,0.9739]
[1757438349663,6.9134,4288.0,4287.9,1.643]
[1757438351866,6.9134,4288.0,4287.9,0.9739]
[1757438353369,1.23,4287.5,4287.4,0.4827]
[1757438353571,6.21,4287.5,4287.4,0.4827]
[1757438354170,6.9134,4287.5,4287.4,0.4827]
[1757438354364,6.9134,4287.5,4286.5,1.75265683]
[1757438354365,0.2742,4287.0,4286.5,0.6691]
[1757438354569,1.6592,4286.6,4286.5,1.643]
[1757438354769,1.6592,4286.6,4286.5,1.878]
[1757438354770,7.0892,4286.6,4286.5,1.878]
[1757438355464,0.9776,4286.5,4285.5,0.1493]
[1757438355664,1.1946,4286.2,4286.1,1.643]
[1757438355871,6.2846,4286.2,4286.1,1.643]
[1757438356265,5.09,4286.2,4286.1,1.643]
[1757438357369,5.8139,4286.2,4286.1,1.643]
[1757438357570,0.7239,4285.6,4285.2,0.23637108]
[1757438357871,6.8859,4285.6,4285.5,0.7201]
[1757438359873,6.8859,4285.6,4285.5,0.235]
[1757438360279,1.6659,4285.1,4285.0,7.235]
[1757438360472,6.3559,4285.1,4285.0,7.0]
[1757438361969,6.3559,4285.1,4285.0,7.4851]
[1757438362176,6.3559,4285.1,4285.0,7.7201]
[1757438364668,6.3559,4285.1,4285.0,8.1995]
[1757438364867,6.3559,4285.1,4285.0,8.8574]
[1757438365574,6.3559,4285.1,4285.0,8.1995]
[1757438367476,6.3559,4285.1,4285.0,7.7201]
[1757438368176,6.3559,4285.1,4285.0,7.0]
[1757438374081,6.5909,4285.1,4285.0,7.0]
[1757438375983,10.5909,4285.1,4285.0,7.0]
[1757438376184,1.1894,4283.9,4283.5,3.6118279]
[1757438376384,5.12,4283.9,4283.6,0.235]
[1757438376687,5.8439,4283.9,4283.8,0.42016]
[1757438376984,5.8439,4283.9,4283.8,0.42134187]
[1757438377993,5.8439,4283.9,4283.8,0.84150187]
[1757438378489,5.8439,4283.9,4283.8,0.42134187]
[1757438378691,5.8439,4283.9,4283.8,0.84150187]
[1757438378892,5.8439,4283.9,4283.8,0.42134187]
[1757438379992,0.7239,4283.9,4283.8,0.84150187]
[1757438380193,5.6039,4283.9,4283.8,0.84150187]
[1757438380392,5.6039,4283.9,4283.8,4.84150187]
[1757438380589,0.2729,4284.0,4283.8,4.42134187]
[1757438380791,5.7939,4284.0,4283.8,4.42134187]
[1757438380992,0.7239,4283.9,4283.8,4.42134187]
[1757438381190,5.5139,4283.9,4283.8,4.84150187]
[1757438381695,5.5139,4283.9,4283.8,4.42134187]
[1757438381889,5.5139,4283.9,4283.8,4.84150187]
[1757438382091,5.9794,4283.9,4283.8,4.42134187]
[1757438382397,0.2729,4284.5,4283.8,4.42134187]
[1757438382398,0.2729,4286.0,4285.4,0.9645]
[1757438382597,5.7584,4285.5,4285.4,5.1143]
[1757438383093,5.4855,4285.5,4285.4,5.1143]
[1757438383291,0.4655,4285.5,4285.4,5.1143]
[1757438383492,6.6749,4285.5,4285.4,0.9645]
[1757438383695,6.6749,4285.5,4285.4,4.1723]
[1757438384397,7.3988,4285.5,4285.4,4.1723]
[1757438385090,7.3988,4285.5,4285.4,3.2078]
[1757438385291,1.9388,4285.0,4284.9,0.7201]
[1757438385485,7.1388,4285.0,4284.9,0.7201]
[1757438385692,7.1388,4285.0,4284.9,1.9065]
[1757438385995,7.1388,4285.0,4284.9,0.235]
[1757438387496,1.8123,4284.3,4284.2,3.2078]
[1757438387692,6.8623,4284.3,4284.2,3.4428]
[1757438388194,6.8623,4284.3,4284.2,3.9712]
[1757438388588,6.8623,4284.3,4284.2,3.4428]
[1757438389490,6.8623,4284.3,4284.2,3.9712]
[1757438391998,6.8623,4284.3,4284.2,3.4428]
[1757438393698,6.8623,4284.3,4284.2,0.235]
[1757438393896,1.8123,4283.8,4283.7,3.2078]
[1757438394095,6.7723,4283.8,4283.7,3.4428]
[1757438394604,6.7723,4283.8,4283.7,3.9712]
[1757438394793,6.7723,4283.8,4283.7,4.4654]
[1757438395902,6.7723,4283.8,4283.7,5.2182]
[1757438396306,6.2586,4283.8,4283.7,5.2182]
[1757438397808,6.7723,4283.8,4283.7,4.4654]
[1757438398407,6.7723,4283.8,4283.7,5.2182]
[1757438400300,6.7723,4283.8,4283.7,4.4654]
[1757438400502,6.2586,4283.8,4283.7,5.2182]
[1757438400701,5.7432,4283.8,4283.7,5.2182]
[1757438401007,6.2586,4283.8,4283.7,5.2182]
[1757438401402,4.96,4283.8,4283.7,9.2182]
[1757438401606,4.96,4283.8,4283.7,9.63837]
[1757438401805,4.96,4283.8,4283.7,9.2182]
[1757438402310,4.96,4283.8,4283.7,9.63837]
[1757438402610,4.96,4283.8,4283.7,9.2182]
[1757438402909,5.7432,4283.8,4283.7,9.2182]
[1757438403308,6.2586,4283.8,4283.7,10.88715683]
[1757438403610,4.96,4283.8,4283.7,10.88715683]
[1757438404505,6.2586,4283.8,4283.7,6.88815683]
[1757438404703,6.7723,4283.8,4283.7,4.4664]
[1757438405609,6.7723,4283.8,4283.7,5.2192]
[1757438408009,6.7723,4283.8,4283.7,3.4438]
[1757438412820,6.7723,4283.8,4283.7,3.9722]
[1757438413210,6.7723,4283.8,4283.7,5.2192]
[1757438414018,6.7723,4283.8,4283.7,4.4664]
[1757438414617,6.7723,4283.8,4283.7,3.9722]
[1757438415714,6.2586,4283.8,4283.7,5.2192]
[1757438416420,6.7723,4283.8,4283.7,5.2192]
[1757438416623,6.7723,4283.8,4283.7,4.4664]
[1757438417027,4.96,4283.8,4283.7,5.2466]
[1757438417319,5.7355,4283.8,4283.7,5.2466]
[1757438417512,6.236,4283.8,4283.7,5.2466]
[1757438418214,6.7582,4283.8,4283.7,5.2466]
[1757438420320,6.7582,4283.8,4283.7,4.4664]
[1757438422124,6.7582,4283.8,4283.7,3.4428]
[1757438423820,6.7582,4283.8,4283.7,3.9597]
[1757438424220,6.7582,4283.8,4283.7,4.4733]
[1757438425024,6.7582,4283.8,4283.7,3.9597]
[1757438425230,6.7582,4283.8,4283.7,3.4428]
[1757438426925,6.7582,4283.8,4283.7,3.2078]
[1757438427125,6.7582,4283.8,4283.7,3.4428]
[1757438427821,6.7582,4283.8,4283.7,0.235]
[1757438433529,4.96,4283.8,4283.7,0.235]
[1757438438634,6.7582,4283.8,4283.7,0.235]
[1757438440031,1.7982,4283.6,4283.5,1.66895683]
[1757438440346,0.7755,4283.4,4283.3,1.8107]
[1757438440548,5.8655,4283.4,4283.3,3.47965683]
[1757438440741,0.7755,4283.7,4283.3,5.26396]
[1757438440949,1.5942,4284.0,4283.9,1.8107]
[1757438441147,6.4342,4284.0,4283.9,2.0457]
[1757438444342,6.116,4284.0,4283.9,2.0457]
[1757438444548,4.84,4284.0,4283.9,2.0457]
[1757438444947,4.84,4284.0,4283.9,6.0457]
[1757438445151,5.6155,4284.0,4283.9,6.0457]
[1757438445848,6.116,4284.0,4283.9,6.0457]
[1757438446041,6.4342,4284.0,4283.9,6.0457]
[1757438446241,6.4342,4284.0,4283.9,2.0457]
[1757438446436,6.9564,4284.0,4283.9,2.0457]
[1757438447942,2.2864,4284.0,4283.9,2.0457]
[1757438449548,5.3864,4284.0,4283.9,1.2655]
[1757438451343,5.3864,4284.0,4283.9,0.7519]
[1757438451652,5.3864,4284.0,4283.9,0.235]
[1757438454854,0.16,4284.0,4283.9,1.2094]
[1757438455157,0.7508,4284.6,4284.5,0.9744]
[1757438455348,1.6514,4284.6,4284.5,5.1361]
[1757438455549,0.41,4284.6,4284.5,5.4172]
[1757438455751,0.7508,4285.2,4285.1,0.9744]
[1757438455951,5.4,4285.2,4285.1,5.1361]
[1757438456153,0.98,4285.2,4285.1,9.1361]
[1757438456554,1.2734,4286.5,4286.4,1.1963]
[1757438456753,6.1034,4286.5,4286.4,1.4313]
[1757438456946,5.8034,4286.5,4286.4,1.9283]
[1757438457256,6.1034,4286.5,4286.4,0.7124]
[1757438457450,6.1034,4286.5,4286.4,0.235]
[1757438458756,6.8542,4286.5,4286.4,0.235]
[1757438462857,1.7242,4286.3,4286.2,0.235]
[1757438463159,7.4442,4286.3,4286.2,0.235]
[1757438463356,11.4442,4286.3,4286.0,0.235]
[1757438463557,1.7242,4286.1,4286.0,0.235]
[1757438463762,6.8942,4286.1,4286.0,0.235]
[1757438464358,6.1434,4286.1,4285.5,3.2078]
[1757438464558,0.9734,4285.7,4285.6,0.235]
[1757438464753,6.8736,4285.7,4285.6,0.235]